fUST/lending_fUST_20260118
["ID","MTS","AMOUNT","RATE_DAILY","PERIOD"]
[402390226,1768671045582,-500.0,0.00016438,3]
[402390228,1768671045591,-500.0,0.00016438,3]
[402390230,1768671045601,-1178.25,0.00016438,3]
[402390232,1768671045611,-690.23,0.00016438,3]
[402390235,1768671045620,-500.0,0.00016438,3]
[402390237,1768671045629,-500.0,0.00016438,3]
[402390240,1768671045638,-1111.8,0.00016438,3]
[402390242,1768671045648,-500.0,0.00016438,3]
[402390244,1768671045657,-500.0,0.00016438,3]
[402390246,1768671045665,-500.0,0.00016438,3]
[402390248,1768671045673,-500.0,0.00016438,3]
[402390250,1768671045682,-500.0,0.00016438,3]
[402390252,1768671045691,-630.79,0.00016438,3]
[402390254,1768671045700,-1007.32,0.00016438,3]
[402390256,1768671045710,-500.0,0.00016438,3]
[402390258,1768671045719,-500.0,0.00016438,3]
[402390260,1768671045728,-935.81,0.00016438,3]
[402390262,1768671045738,-607.74969419,0.00016438,3]
[402390264,1768671045747,-500.0,0.00016438,3]
[402390266,1768671045757,-1293.81,0.00016438,3]
[402390268,1768671045766,-500.0,0.00016438,3]
[402390270,1768671045776,-500.0,0.00016438,3]
[402390272,1768671045785,-500.0,0.00016438,3]
[402390274,1768671045795,-885.21,0.00016438,3]
[402390276,1768671045805,-500.0,0.00016438,3]
[402390278,1768671045814,-500.0,0.00016438,3]
[402390280,1768671045823,-892.47,0.00016438,3]
[402390282,1768671045833,-795.91,0.00016438,3]
[402390284,1768671045843,-631.25,0.00016438,3]
[402390286,1768671045854,-916.13,0.00016438,3]
[402390288,1768671045868,-500.0,0.00016438,3]
[402390290,1768671045878,-1865.13,0.00016438,3]
[402390292,1768671045887,-500.0,0.00016438,3]
[402390294,1768671045897,-500.0,0.00016438,3]
[402390296,1768671045908,-500.0,0.00016438,3]
[402390298,1768671045922,-500.0,0.00016438,3]
[402390301,1768671045932,-500.0,0.00016438,3]
[402390303,1768671045942,-868.23,0.00016438,3]
[402390304,1768671045951,-500.0,0.00016438,2]
[402390306,1768671045961,-731.07,0.00016438,3]
[402390308,1768671045970,-500.0,0.00016438,3]
[402390310,1768671045979,-1171.48,0.00016438,3]
[402390312,1768671045991,-500.0,0.00016438,3]
[402390314,1768671046001,-232.64036101,0.00016438,3]
[402390316,1768671046012,-500.0,0.00016438,3]
[402390318,1768671046021,-500.0,0.00016438,3]
[402390320,1768671046031,-500.0,0.00016438,2]
[402390322,1768671046041,-500.0,0.00016438,3]
[402390325,1768671046051,-500.0,0.00016438,3]
[402390327,1768671046062,-500.0,0.00016456,2]
[402390329,1768671046071,-1041.66666667,0.00016637,2]
[402390331,1768671046080,-500.0,0.00016712,3]
[402390332,1768671046090,-500.0,0.00016712,3]
[402390334,1768671046100,-500.0,0.00016712,3]
[402390336,1768671046110,-500.0,0.00016712,3]
[402390338,1768671046120,-500.0,0.00016712,3]
[402390340,1768671046130,-650.23,0.00016712,3]
[402390343,1768671046141,-500.0,0.00016712,3]
[402390345,1768671046151,-504.49,0.00016712,3]
[402390346,1768671046159,-500.0,0.00016712,3]
[402390348,1768671046167,-500.0,0.00016712,3]
[402390350,1768671046176,-500.0,0.00016712,3]
[402390352,1768671046187,-500.0,0.00016712,3]
[402390354,1768671046196,-1020.29,0.00016712,3]
[402390356,1768671046205,-500.0,0.00016712,3]
[402390358,1768671046216,-500.0,0.00016712,3]
[402390360,1768671046225,-500.0,0.00016712,3]
[402390362,1768671046235,-513.67,0.00016712,3]
[402390364,1768671046245,-500.0,0.00016712,3]
[402390366,1768671046254,-2425.52140921,0.00016712,3]
[402390368,1768671046264,-630.36,0.00016712,3]
[402390370,1768671046274,-620.63413728,0.00016712,3]
[402390372,1768671046283,-500.0,0.00016712,3]
[402390374,1768671046292,-500.0,0.00016712,3]
[402390376,1768671046302,-500.0,0.00016712,3]
[402390378,1768671046311,-641.57,0.00016712,3]
[402390380,1768671046320,-560.77,0.00016712,3]
[402390382,1768671046329,-500.0,0.00016712,3]
[402390384,1768671046339,-550.82,0.00016712,3]
[402390386,1768671046349,-601.93,0.00016712,3]
[402390388,1768671046359,-500.0,0.00016712,3]
[402390390,1768671046369,-607.92,0.00016712,3]
[402390392,1768671046378,-878.57,0.00016712,3]
[402390394,1768671046388,-500.0,0.00016712,3]
[402390396,1768671046397,-500.0,0.00016712,3]
[402390398,1768671046407,-500.0,0.00016712,3]
[402390400,1768671046417,-500.0,0.00016712,3]
[402390402,1768671046427,-500.0,0.00016712,3]
[402390404,1768671046438,-605.26,0.00016712,3]
[402390406,1768671046447,-500.0,0.00016712,3]
[402390408,1768671046456,-500.0,0.00016712,3]
[402390410,1768671046466,-500.0,0.00016712,3]
[402390412,1768671046475,-500.0,0.00016712,3]
[402390414,1768671046485,-500.0,0.00016712,3]
[402390416,1768671046494,-836.17,0.00016712,3]
[402390418,1768671046504,-500.0,0.00016712,3]
[402390420,1768671046513,-500.0,0.00016712,3]
[402390422,1768671046524,-500.0,0.00016712,3]
[402390424,1768671046535,-500.0,0.00016712,3]
[402390426,1768671046545,-500.0,0.00016712,3]
[402390428,1768671046554,-500.0,0.00016712,3]
[402390430,1768671046566,-500.0,0.00016712,3]
[402390433,1768671046576,-516.72,0.00016712,3]
[402390435,1768671046585,-500.0,0.00016712,3]
[402390436,1768671046595,-314.91278331,0.00016712,3]
[402390438,1768671046604,-500.0,0.00016712,3]
[402390440,1768671046613,-500.0,0.00016712,3]
[402390442,1768671046623,-500.0,0.00016712,3]
[402390444,1768671046632,-500.0,0.00016712,3]
[402390446,1768671046641,-500.0,0.00016712,3]
[402390448,1768671046651,-500.0,0.00016712,3]
[402390450,1768671046660,-1069.93,0.00016712,3]
[402390452,1768671046669,-500.0,0.00016712,3]
[402390454,1768671046679,-500.0,0.00016712,3]
[402390456,1768671046688,-958.52,0.00016712,3]
[402390458,1768671046697,-1014.43,0.00016712,3]
[402390460,1768671046707,-500.0,0.00016712,3]
[402390462,1768671046718,-537.39,0.00016712,3]
[402390464,1768671046729,-500.0,0.00016712,3]
[402390467,1768671046739,-500.0,0.00016712,3]
[402390469,1768671046749,-827.72,0.00016712,3]
[402390470,1768671046759,-500.0,0.00016712,3]
[402390472,1768671046769,-507.04,0.00016712,3]
[402390474,1768671046778,-500.0,0.00016712,3]
[402390476,1768671046787,-500.0,0.00016712,3]
[402390478,1768671046797,-571.17,0.00016712,3]
[402390480,1768671046806,-500.0,0.00016712,3]
[402390482,1768671046815,-500.0,0.00016712,3]
[402390484,1768671046825,-500.0,0.00016712,3]
[402390486,1768671046834,-796.71,0.00016712,3]
[402390488,1768671046844,-500.0,0.00016712,3]
[402390490,1768671046853,-500.0,0.00016712,3]
[402390492,1768671046863,-759.51,0.00016712,3]
[402390494,1768671046873,-500.0,0.00016712,3]
[402390496,1768671046882,-663.56,0.00016712,3]
[402390498,1768671046891,-500.0,0.00016712,3]
[402390500,1768671046901,-500.0,0.00016712,3]
[402390502,1768671046912,-897.92,0.00016712,3]
[402390504,1768671046923,-1002.46,0.00016712,3]
[402390506,1768671046933,-500.0,0.00016712,3]
[402390508,1768671046943,-500.0,0.00016712,3]
[402390510,1768671046952,-569.16,0.00016712,3]
[402390512,1768671046963,-229.04893973,0.00016712,3]
[402390514,1768671046972,-500.0,0.00016712,3]
[402390516,1768671046982,-500.0,0.00016712,3]
[402390518,1768671046991,-973.03,0.00016712,3]
[402390520,1768671047002,-500.0,0.00016712,3]
[402390522,1768671047012,-500.0,0.00016712,3]
[402390524,1768671047021,-500.0,0.00016712,3]
[402390525,1768671047031,-500.0,0.00016712,3]
[402390527,1768671047041,-211.77953506,0.00016712,3]
[402390529,1768671047050,-1145.84,0.00016712,3]
[402390531,1768671047059,-500.0,0.00016712,3]
[402390533,1768671047068,-1036.57,0.00016712,3]
[402390535,1768671047077,-500.0,0.00016712,3]
[402390537,1768671047086,-500.0,0.00016712,3]
[402390539,1768671047095,-500.0,0.00016712,3]
[402390541,1768671047105,-500.0,0.00016712,3]
[402390543,1768671047114,-500.0,0.00016712,3]
[402390545,1768671047124,-500.0,0.00016712,3]
[402390547,1768671047133,-407.51341216,0.00016712,3]
[402390549,1768671047143,-626.78,0.00016712,3]
[402390551,1768671047152,-500.0,0.00016712,3]
[402390553,1768671047161,-1372.3,0.00016712,3]
[402390555,1768671047171,-500.0,0.00016712,3]
[402390557,1768671047181,-582.01,0.00016712,3]
[402390559,1768671047190,-500.0,0.00016712,3]
[402390561,1768671047199,-834.09,0.00016712,3]
[402390563,1768671047208,-155.6746373,0.00016712,3]
[402390565,1768671047217,-593.76,0.00016712,3]
[402390567,1768671047227,-585.52,0.00016712,3]
[402390569,1768671047237,-500.0,0.00016712,3]
[402390571,1768671047248,-500.0,0.00016712,3]
[402390573,1768671047257,-500.0,0.00016712,3]
[402390575,1768671047268,-500.0,0.00016712,3]
[402390577,1768671047277,-1269.07,0.00016712,3]
[402390579,1768671047285,-500.0,0.00016712,3]
[402390581,1768671047294,-500.0,0.00016712,3]
[402390583,1768671047303,-500.0,0.00016712,3]
[402390585,1768671047312,-500.0,0.00016712,3]
[402390587,1768671047321,-672.51,0.00016712,3]
[402390589,1768671047332,-802.1,0.00016712,3]
[402390591,1768671047342,-500.0,0.00016712,3]
[402390593,1768671047350,-811.08,0.00016712,3]
[402390595,1768671047360,-500.0,0.00016712,3]
[402390597,1768671047370,-788.34,0.00016712,3]
[402390599,1768671047382,-903.37,0.00016712,3]
[402390601,1768671047392,-548.66,0.00016712,3]
[402390603,1768671047402,-717.06,0.00016712,3]
[402390605,1768671047412,-500.0,0.00016712,3]
[402390607,1768671047424,-500.0,0.00016712,3]
[402390609,1768671047434,-500.0,0.00016712,3]
[402390611,1768671047444,-500.0,0.00016712,3]
[402390613,1768671047454,-500.0,0.00016712,3]
[402390615,1768671047464,-627.53,0.00016712,3]
[402390617,1768671047473,-500.0,0.00016712,3]
[402390619,1768671047482,-500.0,0.00016712,3]
[402390621,1768671047493,-542.64,0.00016712,3]
[402390623,1768671047502,-1215.79,0.00016712,3]
[402390625,1768671047513,-508.66,0.00016712,3]
[402390627,1768671047522,-500.0,0.00016712,3]
[402390629,1768671047532,-500.0,0.00016712,3]
[402390631,1768671047542,-500.0,0.00016712,3]
[402390633,1768671047551,-361.65318307,0.00016712,3]
[402390635,1768671047561,-695.75,0.00016712,3]
[402390637,1768671047571,-500.0,0.00016712,3]
[402390639,1768671047580,-500.0,0.00016712,3]
[402390641,1768671047589,-500.0,0.00016712,3]
[402390643,1768671047599,-1159.94,0.00016712,3]
[402390645,1768671047608,-527.91,0.00016712,3]
[402390647,1768671047618,-609.82,0.00016712,3]
[402390649,1768671047627,-500.0,0.00016712,3]
[402390651,1768671047636,-500.0,0.00016712,3]
[402390653,1768671047646,-500.0,0.00016712,3]
[402390655,1768671047655,-539.12,0.00016712,3]
[402390657,1768671047665,-500.0,0.00016712,3]
[402390659,1768671047674,-441.88906637,0.00016712,3]
[402390661,1768671047684,-1200.0,0.00016712,2]
[402390663,1768671047694,-500.0,0.00016712,3]
[402390665,1768671047703,-500.0,0.00016712,3]
[402390667,1768671047713,-500.0,0.00016712,3]
[402390669,1768671047722,-1064.85,0.00016712,3]
[402390671,1768671047731,-500.0,0.00016712,3]
[402390673,1768671047741,-784.89,0.00016712,3]
[402390675,1768671047750,-267.54932602,0.00016712,3]
[402390677,1768671047760,-500.0,0.00016712,3]
[402390679,1768671047769,-500.0,0.00016712,3]
[402390681,1768671047779,-500.0,0.00016712,3]
[402390683,1768671047787,-500.0,0.00016712,3]
[402390684,1768671047797,-500.0,0.00016712,3]
[402390686,1768671047806,-500.0,0.00016712,3]
[402390688,1768671047816,-183.91,0.00016712,3]
[402390690,1768671047825,-546.6,0.00016712,3]
[402390692,1768671047834,-500.0,0.00016712,3]
[402390694,1768671047844,-500.0,0.00016712,3]
[402390696,1768671047854,-500.0,0.00016712,3]
[402390698,1768671047864,-500.0,0.00016712,3]
[402390700,1768671047874,-1291.66,0.00016712,3]
[402390702,1768671047884,-582.71,0.00016712,3]
[402390704,1768671047893,-500.0,0.00016712,3]
[402390706,1768671047902,-500.0,0.00016712,3]
[402390708,1768671047915,-1368.73,0.00016712,3]
[402390710,1768671047925,-601.73,0.00016712,3]
[402390712,1768671047934,-616.3,0.00016712,3]
[402390714,1768671047944,-500.0,0.00016712,3]
[402390716,1768671047956,-500.0,0.00016712,3]
[402390718,1768671047966,-500.0,0.00016712,3]
[402390720,1768671047976,-1673.42,0.00016712,3]
[402390722,1768671047987,-500.0,0.00016712,3]
[402390724,1768671047997,-500.0,0.00016712,3]
[402390726,1768671048007,-500.0,0.00016712,3]
[402390728,1768671048017,-500.0,0.00016712,3]
[402390730,1768671048027,-1024.71,0.00016712,3]
[402390732,1768671048038,-500.0,0.00016712,3]
[402390734,1768671048048,-500.0,0.00016712,3]
[402390736,1768671048058,-500.0,0.00016712,3]
[402390738,1768671048068,-625.69,0.00016712,3]
[402390740,1768671048078,-583.28,0.00016712,3]
[402390741,1768671048088,-500.0,0.00016712,3]
[402390742,1768671048098,-500.0,0.00016712,3]
[402390743,1768671048109,-500.0,0.00016712,3]
[402390744,1768671048119,-759.13,0.00016712,3]
[402390745,1768671048129,-500.0,0.00016712,3]
[402390746,1768671048140,-989.22,0.00016712,3]
[402390747,1768671048152,-500.0,0.00016712,3]
[402390748,1768671048162,-500.0,0.00016712,3]
[402390749,1768671048173,-500.0,0.00016712,3]
[402390750,1768671048183,-928.98,0.00016712,3]
[402390751,1768671048194,-500.0,0.00016712,3]
[402390752,1768671048204,-775.35,0.00016712,3]
[402390753,1768671048215,-500.0,0.00016712,3]
[402390754,1768671048226,-500.0,0.00016712,3]
[402390755,1768671048236,-701.07,0.00016712,3]
[402390756,1768671048247,-500.0,0.00016712,3]
[402390757,1768671048257,-488.07553798,0.00016712,3]
[402390758,1768671048267,-500.0,0.00016712,3]
[402390759,1768671048277,-988.19,0.00016712,3]
[402390760,1768671048287,-500.0,0.00016712,3]
[402390761,1768671048297,-500.0,0.00016712,3]
[402390762,1768671048308,-227.26017187,0.00016712,3]
[402390763,1768671048318,-659.44,0.00016712,3]
[402390765,1768671048328,-534.03247418,0.00016712,3]
[402390767,1768671048338,-500.0,0.00016712,3]
[402390769,1768671048348,-305.2620146,0.00016712,3]
[402390771,1768671048358,-558.68,0.00016712,3]
[402390773,1768671048368,-908.66,0.00016712,3]
[402390775,1768671048378,-500.0,0.00016712,3]
[402390777,1768671048388,-909.08,0.00016712,3]
[402390779,1768671048398,-836.07,0.00016712,3]
[402390781,1768671048408,-500.0,0.00016712,3]
[402390783,1768671048418,-500.0,0.00016712,3]
[402390785,1768671048428,-243.92,0.00016712,3]
[402390787,1768671048439,-895.09,0.00016712,3]
[402390789,1768671048449,-500.0,0.00016712,3]
[402390791,1768671048460,-591.73,0.00016712,3]
[402390794,1768671048470,-500.0,0.00016712,3]
[402390796,1768671048479,-500.0,0.00016712,3]
[402390798,1768671048489,-500.0,0.00016712,3]
[402390800,1768671048499,-500.0,0.00016712,3]
[402390802,1768671048509,-500.0,0.00016712,3]
[402390804,1768671048519,-1000.0,0.00016712,2]
[402390806,1768671048529,-881.52,0.00016712,3]
[402390808,1768671048539,-500.0,0.00016712,3]
[402390810,1768671048550,-500.0,0.00016712,3]
[402390812,1768671048562,-500.0,0.00016712,3]
[402390814,1768671048571,-580.6,0.00016712,3]
[402390816,1768671048581,-500.0,0.00016712,3]
[402390818,1768671048592,-500.0,0.00016712,3]
[402390820,1768671048602,-192.04137891,0.00016712,3]
[402390822,1768671048612,-997.55,0.00016712,3]
[402390824,1768671048622,-986.56,0.00016712,3]
[402390826,1768671048632,-726.48,0.00016712,3]
[402390828,1768671048643,-500.0,0.00016712,3]
[402390830,1768671048653,-527.03,0.00016712,3]
[402390832,1768671048663,-711.42,0.00016712,3]
[402390835,1768671048673,-500.0,0.00016712,3]
[402390837,1768671048683,-500.0,0.00016712,3]
[402390839,1768671048693,-169.97384605,0.00016712,3]
[402390841,1768671048703,-500.0,0.00016712,3]
[402390843,1768671048713,-681.68,0.00016712,3]
[402390845,1768671048723,-500.0,0.00016712,3]
[402390847,1768671048733,-1383.24,0.00016712,3]
[402390849,1768671048744,-500.0,0.00016712,3]
[402390851,1768671048754,-500.0,0.00016712,3]
[402390853,1768671048764,-500.0,0.00016712,3]
[402390855,1768671048774,-500.0,0.00016712,3]
[402390857,1768671048784,-500.0,0.00016712,3]
[402390859,1768671048795,-500.0,0.00016712,3]
[402390861,1768671048805,-234.0182413,0.00016712,3]
[402390863,1768671048816,-500.0,0.00016712,3]
[402390865,1768671048825,-233.73958295,0.00016712,3]
[402390868,1768671048837,-901.14,0.00016712,3]
[402390869,1768671048847,-500.0,0.00016712,3]
[402390872,1768671048857,-1427.95,0.00016712,3]
[402390874,1768671048868,-500.0,0.00016712,3]
[402390876,1768671048878,-500.0,0.00016712,3]
[402390878,1768671048888,-500.0,0.00016712,3]
[402390880,1768671048898,-521.41015728,0.00016712,3]
[402390882,1768671048909,-500.0,0.00016712,3]
[402390884,1768671048921,-562.06,0.00016712,3]
[402390886,1768671048932,-500.0,0.00016712,3]
[402390888,1768671048943,-631.24,0.00016712,3]
[402390890,1768671048954,-500.0,0.00016712,3]
[402390892,1768671048964,-500.0,0.00016712,3]
[402390894,1768671048974,-500.0,0.00016712,3]
[402390896,1768671048985,-986.41,0.00016712,3]
[402390898,1768671048995,-519.14,0.00016712,3]
[402390900,1768671049005,-1029.4,0.00016712,3]
[402390902,1768671049015,-735.01,0.00016712,3]
[402390904,1768671049026,-500.0,0.00016712,3]
[402390906,1768671049036,-500.0,0.00016712,3]
[402390908,1768671049046,-614.82778926,0.00016712,3]
[402390910,1768671049058,-500.0,0.00016712,3]
[402390912,1768671049068,-500.0,0.00016712,3]
[402390914,1768671049077,-500.0,0.00016712,3]
[402390917,1768671049087,-5359.27,0.00016712,3]
[402390919,1768671049105,-500.0,0.00016712,3]
[402390921,1768671049126,-568.35,0.00016712,3]
[402390923,1768671049142,-500.0,0.00016712,3]
[402390925,1768671049153,-1101.12,0.00016712,3]
[402390927,1768671049164,-500.0,0.00016712,3]
[402390929,1768671049175,-500.0,0.00016712,3]
[402390932,1768671049186,-500.0,0.00016712,3]
[402390934,1768671049198,-620.92,0.00016712,3]
[402390936,1768671049218,-1029.06,0.00016712,3]
[402390938,1768671049239,-500.0,0.00016712,3]
[402390940,1768671049250,-582.7,0.00016712,3]
[402390942,1768671049261,-966.59,0.00016712,3]
[402390944,1768671049272,-601.92,0.00016712,3]
[402390947,1768671049284,-1318.28,0.00016712,3]
[402390949,1768671049295,-500.0,0.00016712,3]
[402390951,1768671049308,-870.32,0.00016712,3]
[402390953,1768671049321,-500.0,0.00016712,3]
[402390955,1768671049334,-1001.43,0.00016712,3]
[402390956,1768671049345,-500.0,0.00016712,3]
[402390959,1768671049357,-502.96,0.00016712,3]
[402390961,1768671049371,-500.0,0.00016712,3]
[402390963,1768671049383,-836.79,0.00016712,3]
[402390965,1768671049393,-1794.03,0.00016712,3]
[402390967,1768671049404,-500.0,0.00016712,3]
[402390969,1768671049414,-500.0,0.00016712,3]
[402390971,1768671049423,-500.0,0.00016712,3]
[402390973,1768671049433,-725.29,0.00016712,3]
[402390975,1768671049443,-1046.9,0.00016712,3]
[402390977,1768671049453,-500.0,0.00016712,3]
[402390979,1768671049464,-500.0,0.00016712,3]
[402390981,1768671049473,-500.0,0.00016712,3]
[402390983,1768671049483,-500.0,0.00016712,3]
[402390985,1768671049493,-500.0,0.00016712,3]
[402390987,1768671049503,-996.01,0.00016712,3]
[402390989,1768671049512,-500.0,0.00016712,3]
[402390991,1768671049522,-500.0,0.00016712,3]
[402390993,1768671049531,-621.3,0.00016712,3]
[402390995,1768671049541,-500.0,0.00016712,3]
[402390997,1768671049552,-1216.69,0.00016712,3]
[402390999,1768671049562,-595.68,0.00016712,3]
[402391001,1768671049572,-500.0,0.00016712,3]
[402391003,1768671049582,-395.32581344,0.00016712,3]
[402391005,1768671049594,-500.0,0.00016712,3]
[402391007,1768671049605,-500.0,0.00016712,3]
[402391016,1768671049682,-711.04,0.00016712,3]
[402391018,1768671049691,-1115.46,0.00016712,3]
[402391020,1768671049700,-500.0,0.00016712,3]
[402391022,1768671049710,-1317.98,0.00016712,3]
[402391024,1768671049720,-500.0,0.00016712,3]
[402391026,1768671049730,-500.0,0.00016712,3]
[402391028,1768671049740,-813.28,0.00016712,3]
[402391030,1768671049750,-500.0,0.00016712,3]
[402391032,1768671049759,-500.0,0.00016712,3]
[402391034,1768671049769,-500.0,0.00016712,3]
[402391035,1768671049778,-636.74,0.00016712,3]
[402391037,1768671049788,-500.0,0.00016712,3]
[402391039,1768671049798,-513.07,0.00016712,3]
[402391041,1768671049807,-500.0,0.00016712,3]
[402391043,1768671049817,-500.0,0.00016712,3]
[402391045,1768671049826,-2411.01,0.00016712,3]
[402391047,1768671049836,-500.0,0.00016712,3]
[402391049,1768671049845,-500.0,0.00016712,3]
[402391051,1768671049855,-500.0,0.00016712,3]
[402391053,1768671049864,-682.14,0.00016712,3]
[402391055,1768671049874,-969.48,0.00016712,3]
[402391057,1768671049883,-500.0,0.00016712,3]
[402391059,1768671049893,-500.0,0.00016712,3]
[402391061,1768671049903,-825.91,0.00016712,3]
[402391063,1768671049915,-500.0,0.00016712,3]
[402391065,1768671049924,-500.0,0.00016712,3]
[402391067,1768671049934,-237.3142042,0.00016712,3]
[402391069,1768671049943,-500.0,0.00016712,3]
[402391071,1768671049954,-500.0,0.00016712,3]
[402391073,1768671049963,-789.68,0.00016712,3]
[402391075,1768671049973,-724.51,0.00016712,3]
[402391077,1768671049983,-545.7,0.00016712,3]
[402391079,1768671049992,-500.0,0.00016712,3]
[402391080,1768671050001,-875.65,0.00016712,3]
[402391082,1768671050011,-999.93,0.00016712,3]
[402391084,1768671050020,-537.95,0.00016712,3]
[402391086,1768671050030,-500.0,0.00016712,3]
[402391088,1768671050039,-500.0,0.00016712,3]
[402391090,1768671050048,-653.95,0.00016712,3]
[402391092,1768671050057,-500.0,0.00016712,3]
[402391094,1768671050067,-500.0,0.00016712,3]
[402391096,1768671050077,-500.0,0.00016712,3]
[402391098,1768671050086,-500.0,0.00016712,3]
[402391100,1768671050095,-1201.07,0.00016712,3]
[402391102,1768671050104,-1091.93,0.00016712,3]
[402391104,1768671050114,-500.0,0.00016712,3]
[402391106,1768671050123,-500.0,0.00016712,3]
[402391108,1768671050131,-500.0,0.00016712,3]
[402391110,1768671050140,-794.33,0.00016712,3]
[402391112,1768671050148,-500.0,0.00016712,3]
[402391114,1768671050156,-1581.26,0.00016712,3]
[402391116,1768671050164,-665.32,0.00016712,3]
[402391118,1768671050173,-1111.24,0.00016712,3]
[402391120,1768671050180,-622.6,0.00016712,3]
[402391122,1768671050188,-500.0,0.00016712,3]
[402391123,1768671050195,-689.01,0.00016712,3]
[402391125,1768671050203,-10183.15,0.00016712,3]
[402391127,1768671050211,-500.0,0.00016712,3]
[402391129,1768671050219,-500.0,0.00016712,3]
[402391131,1768671050227,-677.02,0.00016712,3]
[402391133,1768671050236,-500.0,0.00016712,3]
[402391135,1768671050245,-1541.04,0.00016712,3]
[402391137,1768671050253,-500.0,0.00016712,3]
[402391139,1768671050262,-500.0,0.00016712,3]
[402391141,1768671050269,-910.28,0.00016712,3]
[402391143,1768671050277,-805.7,0.00016712,3]
[402391144,1768671050284,-500.0,0.00016712,3]
[402391146,1768671050291,-500.0,0.00016712,3]
[402391148,1768671050300,-634.34,0.00016712,3]
[402391150,1768671050308,-500.0,0.00016712,3]
[402391152,1768671050315,-581.05,0.00016712,3]
[402391154,1768671050323,-484.73745708,0.00016712,3]
[402391156,1768671050332,-500.0,0.00016712,3]
[402391157,1768671050341,-1336.3,0.00016712,3]
[402391159,1768671050350,-500.0,0.00016712,3]
[402391161,1768671050360,-831.03,0.00016712,3]
[402391163,1768671050369,-745.75,0.00016712,3]
[402391165,1768671050379,-1833.99,0.00016712,3]
[402391167,1768671050388,-591.94,0.00016712,3]
[402391169,1768671050397,-500.0,0.00016712,3]
[402391171,1768671050407,-1153.65,0.00016712,3]
[402391173,1768671050415,-773.11,0.00016712,3]
[402391175,1768671050425,-1002.07,0.00016712,3]
[402391177,1768671050434,-500.0,0.00016712,3]
[402391179,1768671050443,-663.71,0.00016712,3]
[402391181,1768671050452,-1148.88,0.00016712,3]
[402391183,1768671050462,-500.0,0.00016712,3]
[402391185,1768671050472,-500.0,0.00016712,3]
[402391187,1768671050481,-692.63,0.00016712,3]
[402391189,1768671050490,-794.86,0.00016712,3]
[402391191,1768671050500,-1421.47,0.00016712,3]
[402391192,1768671050509,-500.0,0.00016712,3]
[402391195,1768671050519,-1000.0,0.00016712,2]
[402391196,1768671050530,-1397.22,0.00016712,3]
[402391198,1768671050540,-500.0,0.00016712,3]
[402391200,1768671050549,-500.0,0.00016712,3]
[402391202,1768671050559,-781.54,0.00016712,3]
[402391215,1768671050801,-500.0,0.00016712,3]
[402391219,1768671050859,-500.0,0.00016712,3]
[402391221,1768671050869,-500.0,0.00016712,3]